fUST/lending_fUST_20240508
["ID","MTS","AMOUNT","RATE_DAILY","PERIOD"]
[326624035,1715158241628,-500.0,0.00019178,2]
[326624036,1715158241638,-500.0,0.00019178,2]
[326624037,1715158241647,-500.0,0.00019178,2]
[326624038,1715158241657,-603.62,0.00019178,2]
[326624039,1715158241666,-500.0,0.00019178,2]
[326624040,1715158241675,-500.21043722,0.00019178,2]
[326624041,1715158241684,-605.89,0.00019178,2]
[326624042,1715158241694,-500.0,0.00019178,2]
[326624043,1715158241703,-500.0,0.00019178,2]
[326624044,1715158241714,-500.0,0.00019178,2]
[326624045,1715158241724,-500.0,0.00019178,2]
[326624046,1715158241733,-500.0,0.00019178,2]
[326624047,1715158241742,-500.0,0.00019178,2]
[326624048,1715158241751,-500.0,0.00019178,2]
[326624049,1715158241760,-500.0,0.00019178,2]
[326624050,1715158241770,-500.0,0.00019178,2]
[326624051,1715158241779,-500.0,0.00019178,2]
[326624052,1715158241788,-500.3017138,0.00019178,2]
[326624053,1715158241809,-510.64,0.00019178,2]
[326624054,1715158241820,-500.15936496,0.00019178,2]
[326624055,1715158241830,-500.0,0.00019178,2]
[326624056,1715158241841,-500.0,0.00019178,2]
[326624057,1715158241851,-500.0,0.00019178,2]
[326624058,1715158241861,-500.0,0.00019178,2]
[326624059,1715158241871,-500.0,0.00019178,2]
[326624060,1715158241880,-500.0,0.00019178,2]
[326624061,1715158241890,-500.0,0.00019178,2]
[326624062,1715158241900,-500.0,0.00019178,2]
[326624063,1715158241910,-500.0,0.00019178,2]
[326624064,1715158241920,-500.0,0.00019178,2]
[326624065,1715158241930,-500.0,0.00019178,2]
[326624066,1715158241940,-500.0,0.00019178,2]
[326624067,1715158241949,-500.0,0.00019178,2]
[326624068,1715158241959,-500.0,0.00019178,2]
[326624069,1715158241970,-500.0,0.00019178,2]
[326624070,1715158241979,-500.0,0.00019178,2]
[326624071,1715158241993,-500.0,0.00019178,2]
[326624072,1715158242004,-500.0,0.00019178,2]
[326624073,1715158242014,-500.0,0.00019178,2]
[326624074,1715158242024,-500.0,0.00019178,2]
[326624075,1715158242033,-500.0,0.00019178,2]
[326624076,1715158242043,-500.0,0.00019178,2]
[326624077,1715158242053,-502.0335911,0.00019178,2]
[326624078,1715158242062,-500.0,0.00019178,2]
[326624079,1715158242072,-500.89486425,0.00019178,2]
[326624080,1715158242082,-500.0,0.00019178,2]
[326624081,1715158242091,-500.0,0.00019178,2]
[326624082,1715158242101,-500.0,0.00019178,2]
[326624083,1715158242110,-500.52093805,0.00019178,2]
[326624084,1715158242119,-629.08,0.00019178,2]
[326624085,1715158242129,-500.0,0.00019178,2]
[326624086,1715158242138,-500.0,0.00019178,2]
[326624087,1715158242147,-338.96808894,0.00019178,2]
[326624088,1715158242157,-500.0,0.00019178,2]
[326624089,1715158242166,-500.0,0.00019178,2]
[326624090,1715158242175,-500.0,0.00019178,2]
[326624091,1715158242185,-500.0,0.00019178,2]
[326624092,1715158242194,-500.0,0.00019178,2]
[326624093,1715158242204,-154.7215013,0.00019178,2]
[326624094,1715158242214,-500.0,0.00019178,2]
[326624095,1715158242231,-646.35,0.00019178,2]
[326624096,1715158242240,-500.0,0.00019178,2]
[326624097,1715158242250,-500.0,0.00019178,2]
[326624098,1715158242259,-500.0,0.00019178,2]
[326624099,1715158242269,-504.95208074,0.00019178,2]
[326624100,1715158242279,-500.0,0.00019178,2]
[326624101,1715158242289,-500.0,0.00019178,2]
[326624102,1715158242298,-500.0,0.00019178,2]
[326624103,1715158242308,-500.0,0.00019178,2]
[326624104,1715158242317,-500.0,0.00019178,2]
[326624105,1715158242327,-500.0,0.00019178,2]
[326624106,1715158242337,-500.0,0.00019178,2]
[326624107,1715158242346,-500.0,0.00019178,2]
[326624108,1715158242356,-500.0,0.00019178,2]
[326624109,1715158242365,-500.0,0.00019178,2]
[326624110,1715158242375,-500.0,0.00019178,2]
[326624111,1715158242384,-500.0,0.00019178,2]
[326624112,1715158242394,-500.0,0.00019178,2]
[326624113,1715158242407,-500.0,0.00019178,2]
[326624114,1715158242416,-500.0,0.00019178,2]
[326624115,1715158242425,-500.0,0.00019178,2]
[326624116,1715158242435,-501.33807771,0.00019178,2]
[326624117,1715158242444,-500.0,0.00019178,2]
[326624118,1715158242454,-500.0,0.00019178,2]
[326624119,1715158242463,-500.0,0.00019178,2]
[326624120,1715158242479,-500.0,0.00019178,2]
[326624121,1715158242491,-500.0,0.00019178,2]
[326624122,1715158242502,-500.49727637,0.00019178,2]
[326624123,1715158242512,-500.0,0.00019178,2]
[326624124,1715158242522,-500.0,0.00019178,2]
[326624125,1715158242533,-500.0,0.00019178,2]
[326624126,1715158242547,-500.0,0.00019178,2]
[326624127,1715158242556,-500.0,0.00019178,2]
[326624128,1715158242566,-500.0,0.00019178,2]
[326624129,1715158242575,-500.0,0.00019178,2]
[326624130,1715158242585,-500.0,0.00019178,2]
[326624131,1715158242594,-500.0,0.00019178,2]
[326624132,1715158242604,-500.0,0.00019178,2]
[326624133,1715158242614,-500.0,0.00019178,2]
[326624134,1715158242623,-500.0,0.00019178,2]
[326624135,1715158242633,-500.0,0.00019178,2]
[326624136,1715158242642,-500.0,0.00019178,2]
[326624137,1715158242652,-500.0,0.00019178,2]
[326624138,1715158242661,-500.0,0.00019178,2]
[326624139,1715158242672,-500.0,0.00019178,2]
[326624140,1715158242682,-500.0,0.00019178,2]
[326624141,1715158242691,-648.0,0.00019178,2]
[326624142,1715158242701,-500.0,0.00019178,2]
[326624143,1715158242711,-500.0,0.00019178,2]
[326624144,1715158242723,-501.21930517,0.00019178,2]
[326624145,1715158242733,-500.0,0.00019178,2]
[326624146,1715158242742,-626.34,0.00019178,2]
[326624147,1715158242752,-500.0,0.00019178,2]
[326624148,1715158242761,-500.0,0.00019178,2]
[326624149,1715158242771,-500.0,0.00019178,2]
[326624150,1715158242781,-500.0,0.00019178,2]
[326624151,1715158242790,-500.0,0.00019178,2]
[326624152,1715158242800,-500.0,0.00019178,2]
[326624153,1715158242810,-500.0,0.00019178,2]
[326624154,1715158242819,-500.0,0.00019178,2]
[326624155,1715158242829,-500.0,0.00019178,2]
[326624156,1715158242839,-500.0,0.00019178,2]
[326624157,1715158242848,-500.0,0.00019178,2]
[326624158,1715158242857,-500.0,0.00019178,2]
[326624159,1715158242867,-500.0,0.00019178,2]
[326624160,1715158242877,-500.0,0.00019178,2]
[326624161,1715158242887,-300.54535348,0.00019178,2]
[326624162,1715158242896,-500.0,0.00019178,2]
[326624163,1715158242906,-500.0,0.00019178,2]
[326624164,1715158242915,-500.0,0.00019178,2]
[326624165,1715158242924,-503.18104818,0.00019178,2]
[326624166,1715158242934,-500.0,0.00019178,2]
[326624167,1715158242943,-349.0931208,0.00019178,2]
[326624168,1715158242953,-513.90006728,0.00019178,2]
[326624169,1715158242962,-500.0,0.00019178,2]
[326624170,1715158242976,-500.0,0.00019178,2]
[326624171,1715158242986,-642.35,0.00019178,2]
[326624172,1715158242995,-500.0,0.00019178,2]
[326624173,1715158243004,-500.0,0.00019178,2]
[326624174,1715158243014,-500.0,0.00019178,2]
[326624175,1715158243024,-500.6536559,0.00019178,2]
[326624176,1715158243033,-500.0,0.00019178,2]
[326624178,1715158243042,-500.0,0.00019178,2]
[326624180,1715158243052,-500.0,0.00019178,2]
[326624182,1715158243061,-304.87305744,0.00019178,2]
[326624184,1715158243071,-500.0,0.00019178,2]
[326624185,1715158243081,-500.0,0.00019178,2]
[326624186,1715158243091,-502.42452744,0.00019178,2]
[326624188,1715158243101,-284.39621091,0.00019178,2]
[326624190,1715158243111,-500.0,0.00019178,2]
[326624192,1715158243254,-502.9664187,0.00019178,2]
[326624193,1715158243265,-500.94786641,0.00019178,2]
[326624194,1715158243275,-569.29,0.00019178,2]
[326624195,1715158243285,-501.00349492,0.00019178,2]
[326624196,1715158243295,-500.0,0.00019178,2]
[326624197,1715158243304,-500.0,0.00019178,2]
[326624198,1715158243314,-500.59805276,0.00019178,2]
[326624199,1715158243323,-500.0,0.00019178,2]
[326624200,1715158243333,-506.81725761,0.00019178,2]
[326624201,1715158243342,-500.0,0.00019178,2]
[326624202,1715158243352,-1001.71791343,0.00019178,2]
[326624203,1715158243361,-500.8667863,0.00019178,2]
[326624204,1715158243370,-500.8417409,0.00019178,2]
[326624205,1715158243379,-500.0,0.00019178,2]
[326624206,1715158243389,-500.0,0.00019178,2]
[326624207,1715158243398,-500.0,0.00019178,2]
[326624208,1715158243407,-342.84157355,0.00019178,2]
[326624209,1715158243416,-500.0,0.00019178,2]
[326624210,1715158243426,-625.69,0.00019178,2]
[326624211,1715158243435,-500.0,0.00019178,2]
[326624212,1715158243444,-500.0,0.00019178,2]
[326624213,1715158243454,-503.94669868,0.00019178,2]
[326624214,1715158243464,-500.0,0.00019178,2]
[326624215,1715158243476,-500.0,0.00019178,2]
[326624216,1715158243485,-500.0,0.00019178,2]
[326624217,1715158243494,-655.21,0.00019178,2]
[326624218,1715158243504,-500.93402887,0.00019178,2]
[326624219,1715158243513,-500.0,0.00019178,2]
[326624220,1715158243522,-500.0,0.00019178,2]
[326624221,1715158243533,-500.40014316,0.00019178,2]
[326624222,1715158243544,-500.33991872,0.00019178,2]
[326624223,1715158243554,-500.4619337,0.00019178,2]
[326624224,1715158243563,-500.45550629,0.00019178,2]
[326624225,1715158243572,-502.38538638,0.00019178,2]
[326624226,1715158243583,-500.0,0.00019178,2]
[326624227,1715158243592,-500.0,0.00019178,2]
[326624228,1715158243601,-501.85833592,0.00019178,2]
[326624229,1715158243611,-500.0,0.00019178,2]
[326624230,1715158243622,-505.35182862,0.00019178,2]
[326624231,1715158243632,-500.0,0.00019178,2]
[326624232,1715158243641,-517.48467218,0.00019178,2]
[326624233,1715158243651,-500.0,0.00019178,2]
[326624234,1715158243660,-501.31760071,0.00019178,2]
[326624235,1715158243670,-515.4517255,0.00019178,2]
[326624236,1715158243679,-500.0,0.00019178,2]
[326624237,1715158243688,-504.48027776,0.00019178,2]
[326624238,1715158243698,-501.36264672,0.00019178,2]
[326624239,1715158243707,-500.0,0.00019178,2]
[326624240,1715158243718,-501.28717699,0.00019178,2]
[326624241,1715158243728,-500.43742668,0.00019178,2]
[326624242,1715158243737,-502.52757733,0.00019178,2]
[326624243,1715158243746,-500.0,0.00019178,2]
[326624244,1715158243756,-500.0,0.00019178,2]
[326624245,1715158243765,-500.0,0.00019178,2]
[326624246,1715158243775,-500.0,0.00019178,2]
[326624247,1715158243784,-432.59610854,0.00019178,2]
[326624248,1715158243794,-500.0,0.00019178,2]
[326624249,1715158243803,-500.0,0.00019178,2]
[326624250,1715158243813,-509.38614961,0.00019178,2]
[326624251,1715158243822,-500.0,0.00019178,2]
[326624252,1715158243832,-500.0,0.00019178,2]
[326624253,1715158243842,-500.0,0.00019178,2]
[326624254,1715158243851,-510.10970067,0.00019178,2]
[326624255,1715158243861,-500.0,0.00019178,2]
[326624256,1715158243870,-500.0,0.00019178,2]
[326624257,1715158243880,-1000.0,0.00019178,2]
[326624258,1715158243889,-500.0,0.00019178,2]
[326624259,1715158243898,-500.0,0.00019178,2]
[326624260,1715158243908,-500.0,0.00019178,2]
[326624261,1715158243916,-500.0,0.00019178,2]
[326624262,1715158243926,-501.18354552,0.00019178,2]
[326624263,1715158243935,-500.0,0.00019178,2]
[326624264,1715158243944,-611.00958032,0.00019178,2]
[326624265,1715158243953,-500.0,0.00019178,2]
[326624266,1715158243962,-500.0,0.00019178,2]
[326624267,1715158243973,-500.0,0.00019178,2]
[326624268,1715158243982,-500.0,0.00019178,2]
[326624269,1715158243991,-500.0,0.00019178,2]
[326624270,1715158244001,-500.45040515,0.00019178,2]
[326624271,1715158244010,-501.97657944,0.00019178,2]
[326624272,1715158244019,-500.0,0.00019178,2]
[326624273,1715158244029,-500.0,0.00019178,2]
[326624274,1715158244039,-500.0,0.00019178,2]
[326624275,1715158244048,-500.0,0.00019178,2]
[326624276,1715158244057,-405.95651343,0.00019178,2]
[326624277,1715158244067,-505.12882942,0.00019178,2]
[326624278,1715158244076,-500.0,0.00019178,2]
[326624279,1715158244086,-502.84927788,0.00019178,2]
[326624280,1715158244095,-502.20650274,0.00019178,2]
[326624281,1715158244105,-500.0,0.00019178,2]
[326624282,1715158244117,-500.0,0.00019178,2]
[326624283,1715158244127,-500.0,0.00019178,2]
[326624284,1715158244137,-500.0,0.00019178,2]
[326624285,1715158244147,-500.0,0.00019178,2]
[326624286,1715158244156,-500.0,0.00019178,2]
[326624287,1715158244166,-500.0,0.00019178,2]
[326624288,1715158244175,-522.17278484,0.00019178,2]
[326624289,1715158244185,-500.0,0.00019178,2]
[326624290,1715158244195,-500.0,0.00019178,2]
[326624291,1715158244204,-500.0,0.00019178,2]
[326624292,1715158244214,-500.49278813,0.00019178,2]
[326624293,1715158244225,-500.0,0.00019178,2]
[326624294,1715158244235,-500.0,0.00019178,2]
[326624295,1715158244244,-500.0,0.00019178,2]
[326624296,1715158244253,-503.47868654,0.00019178,2]
[326624297,1715158244263,-500.0,0.00019178,2]
[326624298,1715158244272,-500.0,0.00019178,2]
[326624299,1715158244281,-500.0,0.00019178,2]
[326624300,1715158244290,-500.0,0.00019178,2]
[326624301,1715158244300,-3356.41,0.00019178,2]
[326624306,1715158244309,-500.0,0.00019178,2]
[326624310,1715158244319,-500.0,0.00019178,2]
[326624316,1715158244328,-500.0,0.00019178,2]
[326624321,1715158244337,-500.0,0.00019178,2]
[326624328,1715158244347,-500.0,0.00019178,2]
[326624333,1715158244356,-500.0,0.00019178,2]
[326624338,1715158244365,-500.0,0.00019178,2]
[326624344,1715158244375,-507.08151999,0.00019178,2]
[326624349,1715158244384,-598.99026672,0.00019178,2]
[326624353,1715158244393,-500.0,0.00019178,2]
[326624357,1715158244406,-500.0,0.00019178,2]
[326624361,1715158244415,-500.0,0.00019178,2]
[326624365,1715158244425,-506.16782629,0.00019178,2]
[326624369,1715158244434,-500.0,0.00019178,2]
[326624373,1715158244443,-500.0,0.00019178,2]
[326624377,1715158244453,-500.0,0.00019178,2]
[326624381,1715158244462,-500.0,0.00019178,2]
[326624385,1715158244472,-500.0,0.00019178,2]
[326624389,1715158244482,-500.0,0.00019178,2]
[326624393,1715158244491,-501.20940392,0.00019178,2]
[326624396,1715158244500,-500.0,0.00019178,2]
[326624399,1715158244510,-500.0,0.00019178,2]
[326624402,1715158244519,-500.0,0.00019178,2]
[326624405,1715158244528,-500.0,0.00019178,2]
[326624408,1715158244542,-500.0,0.00019178,2]
[326624411,1715158244552,-500.0,0.00019178,2]
[326624414,1715158244561,-504.10683525,0.00019178,2]
[326624417,1715158244570,-502.56756838,0.00019178,2]
[326624420,1715158244581,-500.0,0.00019178,2]
[326624423,1715158244590,-518.16335567,0.00019178,2]
[326624426,1715158244599,-500.0,0.00019178,2]
[326624429,1715158244608,-500.0,0.00019178,2]
[326624432,1715158244620,-503.8795941,0.00019178,2]
[326624435,1715158244631,-500.87606023,0.00019178,2]
[326624438,1715158244639,-500.0,0.00019178,2]
[326624441,1715158244649,-1599.82,0.00019178,2]
[326624443,1715158244658,-1599.82,0.00019178,2]
[326624445,1715158244668,-1599.82,0.00019178,2]
[326624447,1715158244678,-1599.82,0.00019178,2]
[326624449,1715158244687,-500.0,0.00019178,2]
[326624451,1715158244696,-1599.82,0.00019178,2]
[326624453,1715158244706,-1599.82,0.00019178,2]
[326624455,1715158244716,-1599.82,0.00019178,2]
[326624457,1715158244729,-500.0,0.00019178,2]
[326624459,1715158244739,-243.0049593,0.00019178,2]
[326624461,1715158244749,-500.36090112,0.00019178,2]
[326624462,1715158244758,-500.0,0.00019178,2]
[326624464,1715158244768,-500.0,0.00019178,2]
[326624466,1715158244777,-539.24177471,0.00019178,2]
[326624468,1715158244787,-638.68,0.00019178,2]
[326624470,1715158244796,-500.0,0.00019178,2]
[326624472,1715158244805,-500.0,0.00019178,2]
[326624474,1715158244815,-500.0,0.00019178,2]
[326624475,1715158244824,-500.0,0.00019178,2]
[326624476,1715158244833,-500.0,0.00019178,2]
[326624477,1715158244843,-500.89945889,0.00019178,2]
[326624478,1715158244852,-504.7231613,0.00019178,2]
[326624479,1715158244862,-500.91212215,0.00019178,2]
[326624480,1715158244871,-636.54,0.00019178,2]
[326624481,1715158244881,-500.0,0.00019178,2]
[326624482,1715158244890,-253.18698194,0.00019178,2]
[326624483,1715158244900,-500.0,0.00019178,2]
[326624484,1715158244910,-637.85,0.00019178,2]
[326624485,1715158244919,-503.12753386,0.00019178,2]
[326624486,1715158244928,-501.30396843,0.00019178,2]
[326624487,1715158244937,-500.0,0.00019178,2]
[326624488,1715158244947,-500.0,0.00019178,2]
[326624489,1715158244956,-500.0,0.00019178,2]
[326624490,1715158244966,-500.0,0.00019178,2]
[326624491,1715158244977,-500.0,0.00019178,2]
[326624492,1715158244986,-500.0,0.00019178,2]
[326624493,1715158244995,-500.0,0.00019178,2]
[326624494,1715158245005,-500.0,0.00019178,2]
[326624495,1715158245015,-500.0,0.00019178,2]
[326624496,1715158245024,-500.0,0.00019178,2]
[326624497,1715158245034,-607.7,0.00019178,2]
[326624498,1715158245043,-500.0,0.00019178,2]
[326624499,1715158245053,-501.50940935,0.00019178,2]
[326624500,1715158245062,-500.0,0.00019178,2]
[326624501,1715158245071,-500.0,0.00019178,2]
[326624502,1715158245080,-4591.04,0.00019178,2]
[326624503,1715158245090,-151.41031341,0.00019178,2]
[326624504,1715158245099,-500.0,0.00019178,2]
[326624505,1715158245109,-500.0,0.00019178,2]
[326624506,1715158245118,-500.0,0.00019178,2]
[326624507,1715158245131,-500.0,0.00019178,2]
[326624508,1715158245140,-500.0,0.00019178,2]
[326624509,1715158245150,-591.55,0.00019178,2]
[326624510,1715158245159,-500.0,0.00019178,2]
[326624511,1715158245169,-715.62,0.00019178,2]
[326624512,1715158245179,-500.0,0.00019178,2]
[326624513,1715158245188,-500.0,0.00019178,2]
[326624514,1715158245197,-500.0,0.00019178,2]
[326624515,1715158245207,-500.0,0.00019178,2]
[326624516,1715158245216,-500.0,0.00019178,2]
[326624517,1715158245229,-500.83223749,0.00019178,2]
[326624518,1715158245241,-510.34,0.00019178,2]
[326624519,1715158245253,-500.0,0.00019178,2]
[326624520,1715158245263,-989.93,0.00019178,2]
[326624521,1715158245273,-461.23345188,0.00019178,2]
[326624522,1715158245283,-500.0,0.00019178,2]
[326624523,1715158245293,-500.0,0.00019178,2]
[326624524,1715158245303,-500.0,0.00019178,2]
[326624525,1715158245312,-649.57,0.00019178,2]
[326624526,1715158245323,-185.60307373,0.00019178,2]
[326624527,1715158245333,-501.04912287,0.00019178,2]
[326624528,1715158245342,-505.36263432,0.00019178,2]
[326624529,1715158245351,-500.0,0.00019178,2]
[326624530,1715158245361,-633.8337468,0.00019178,2]
[326624531,1715158245370,-500.0,0.00019178,2]
[326624532,1715158245379,-753.3,0.00019178,2]
[326624533,1715158245389,-500.0,0.00019178,2]
[326624534,1715158245398,-500.0,0.00019178,2]
[326624535,1715158245409,-500.0,0.00019178,2]
[326624536,1715158245419,-171.36576708,0.00019178,2]
[326624537,1715158245428,-501.21752999,0.00019178,2]
[326624538,1715158245438,-273.86644323,0.00019178,2]
[326624539,1715158245447,-257.65475353,0.00019178,2]
[326624540,1715158245456,-200.0,0.00019178,2]
[326624541,1715158245465,-500.0,0.00019178,2]
[326624542,1715158245476,-500.0,0.00019178,2]
[326624543,1715158245485,-500.0,0.00019178,2]
[326624544,1715158245494,-500.0,0.00019178,2]
[326624545,1715158245504,-793.86,0.00019178,2]
[326624546,1715158245513,-500.0,0.00019178,2]
[326624547,1715158245522,-500.0,0.00019178,2]
[326624548,1715158245533,-501.89950531,0.00019178,2]
[326624549,1715158245547,-378.45408898,0.00019178,2]
[326624550,1715158245557,-502.31431513,0.00019178,2]
[326624551,1715158245566,-500.0,0.00019178,2]
[326624552,1715158245575,-500.81011332,0.00019178,2]
[326624553,1715158245586,-500.0,0.00019178,2]
[326624554,1715158245595,-500.0,0.00019178,2]
[326624555,1715158245604,-500.0,0.00019178,2]
[326624556,1715158245615,-500.0,0.00019178,2]
[326624557,1715158245625,-500.0,0.00019178,2]
[326624558,1715158245636,-500.0,0.00019178,2]
[326624559,1715158245645,-501.82770971,0.00019178,2]
[326624560,1715158245655,-500.0,0.00019178,2]
[326624561,1715158245664,-500.0,0.00019178,2]
[326624562,1715158245673,-500.0,0.00019178,2]
[326624563,1715158245682,-563.2,0.00019178,2]
[326624564,1715158245692,-500.47636334,0.00019178,2]
[326624565,1715158245701,-503.79342013,0.00019178,2]
[326624566,1715158245711,-500.96026572,0.00019178,2]
[326624567,1715158245720,-500.0,0.00019178,2]
[326624568,1715158245730,-500.0,0.00019178,2]
[326624569,1715158245739,-610.58,0.00019178,2]
[326624570,1715158245748,-500.0,0.00019178,2]
[326624571,1715158245758,-500.0,0.00019178,2]
[326624572,1715158245768,-501.73381371,0.00019178,2]
[326624573,1715158245777,-500.0,0.00019178,2]
[326624575,1715158245786,-505.52921898,0.00019178,2]
[326624577,1715158245796,-500.0,0.00019178,2]
[326624579,1715158245805,-500.0,0.00019178,2]
[326624581,1715158245815,-500.48862648,0.00019178,2]
[326624583,1715158245824,-500.0,0.00019178,2]
[326624585,1715158245834,-282.49171774,0.00019178,2]
[326624587,1715158245843,-500.0,0.00019178,2]
[326624589,1715158245853,-500.0,0.00019178,2]
[326624591,1715158245863,-500.0,0.00019228,2]
[326624593,1715158245873,-500.0,0.00019228,2]
[326624595,1715158245882,-500.0,0.00019228,2]
[326624596,1715158245891,-500.0,0.00019326,2]
[326624601,1715158245996,-625.13235189,0.00019326,2]
[326624602,1715158246005,-500.0,0.00019326,2]
[326624603,1715158246015,-500.0,0.00019326,2]
[326624604,1715158246024,-500.0,0.00019326,2]
[326624605,1715158246034,-500.0,0.00019326,2]
[326624606,1715158246043,-406.33241898,0.00019326,2]
[326624607,1715158246052,-1599.82,0.00019326,2]
[326624608,1715158246061,-500.0,0.00019326,2]
[326624609,1715158246070,-500.0,0.00019329,2]
[326624610,1715158246079,-2000.0,0.00019352,2]
[326624611,1715158246088,-1599.82,0.00019451,2]
[326624612,1715158246097,-500.0,0.00019451,2]
[326624613,1715158246106,-176.53,0.00019452,2]
[326624614,1715158246115,-500.0,0.00019452,2]
[326624615,1715158246124,-333.36,0.00019452,2]
[326624616,1715158246133,-156.96,0.00019452,2]
[326624617,1715158246143,-242.24,0.00019452,2]
[326624618,1715158246152,-500.0,0.00019452,2]
[326624619,1715158246161,-261.67,0.00019452,2]
[326624620,1715158246170,-500.0,0.00019452,2]
[326624621,1715158246181,-500.0,0.00019452,2]
[326624622,1715158246191,-500.0,0.00019452,2]
[326624623,1715158246200,-500.0,0.00019452,2]
[326624624,1715158246209,-618.73,0.00019452,2]
[326624625,1715158246218,-500.0,0.00019452,2]
[326624626,1715158246231,-500.0,0.00019452,2]
[326624627,1715158246239,-343.41,0.00019452,2]
[326624628,1715158246248,-188.0,0.00019452,2]
[326624629,1715158246257,-429.84181034,0.00019452,2]
[326624630,1715158246265,-500.0,0.00019452,2]
[326624631,1715158246274,-345.45,0.00019452,2]
[326624632,1715158246283,-173.58,0.00019452,2]
[326624633,1715158246293,-500.0,0.00019452,2]
[326624634,1715158246302,-393.91,0.00019452,2]
[326624635,1715158246312,-430.85,0.00019452,2]
[326624636,1715158246321,-500.0,0.00019452,2]
[326624637,1715158246330,-500.0,0.00019452,2]
[326624638,1715158246339,-249.8,0.00019452,2]
[326624639,1715158246349,-655.21,0.00019452,2]
[326624640,1715158246358,-501.91131975,0.00019452,2]
[326624641,1715158246367,-500.0,0.00019452,2]
[326624642,1715158246376,-502.10917488,0.00019452,2]
[326624643,1715158246385,-500.0,0.00019452,2]
[326624644,1715158246395,-500.0,0.00019452,2]
[326624645,1715158246406,-500.0,0.00019452,2]
[326624646,1715158246415,-309.34370605,0.00019452,2]
[326624647,1715158246425,-550.0,0.00019452,2]
[326624648,1715158246435,-507.80941382,0.00019452,2]
[326624649,1715158246444,-501.11485077,0.00019452,2]
[326624650,1715158246454,-502.21260436,0.00019452,2]
[326624651,1715158246463,-502.1132058,0.00019452,2]
[326624652,1715158246474,-520.55940876,0.00019452,2]
[326624653,1715158246483,-500.0,0.00019452,2]
[326624654,1715158246495,-508.03540321,0.00019452,2]
[326624655,1715158246505,-500.95810024,0.00019452,2]
[326624656,1715158246514,-503.689268,0.00019452,2]
[326624657,1715158246523,-175.82,0.00019452,2]
[326624658,1715158246533,-502.11512153,0.00019452,2]
[326624659,1715158246548,-621.51576558,0.00019452,2]
[326624660,1715158246557,-465.78,0.00019452,2]
[326624661,1715158246566,-569.01081987,0.00019452,2]
[326624662,1715158246575,-500.53462072,0.00019452,2]
[326624663,1715158246586,-500.58786739,0.00019452,2]
[326624664,1715158246595,-500.54045566,0.00019452,2]
[326624665,1715158246605,-501.41066858,0.00019452,2]
[326624666,1715158246614,-500.0,0.00019452,2]
[326624667,1715158246624,-500.0,0.00019452,2]
[326624668,1715158246634,-280.48,0.00019452,2]
[326624669,1715158246643,-3356.41,0.00019452,2]
[326624670,1715158246652,-478.45,0.00019452,2]
[326624671,1715158246661,-248.14032539,0.00019452,2]
[326624672,1715158246670,-335.25,0.00019452,2]
[326624673,1715158246679,-428.92,0.00019452,2]
[326624674,1715158246688,-500.0,0.00019452,2]
[326624675,1715158246697,-500.0,0.00019452,2]
[326624676,1715158246707,-500.0,0.00019452,2]